bitfinex/quotes_BTCUSD_20250809
["timestamp","ask_amount","ask_price","bid_price","bid_amount"]
[1754711435447,1.18816688,116530.0,116520.0,0.00012169]
[1754711437439,1.50653476,116530.0,116520.0,0.00012169]
[1754711440851,1.18816688,116530.0,116520.0,0.00012169]
[1754711443591,0.869799,116530.0,116520.0,0.00012169]
[1754711443812,1.18816688,116530.0,116520.0,0.00012169]
[1754711444442,1.50653476,116530.0,116520.0,0.00012169]
[1754711447670,1.51458724,116530.0,116520.0,0.00012169]
[1754711448599,1.50653476,116530.0,116520.0,0.00012169]
[1754711450634,1.51458484,116530.0,116520.0,0.00012169]
[1754711451365,1.51458435,116530.0,116520.0,0.00012169]
[1754711458528,1.19621647,116530.0,116520.0,0.00012169]
[1754711458750,1.18816688,116530.0,116520.0,0.00012169]
[1754711458974,1.50653476,116530.0,116520.0,0.00012169]
[1754711459164,0.869799,116530.0,116520.0,0.00012169]
[1754711459363,1.18816688,116530.0,116520.0,0.00012169]
[1754711459922,1.50653476,116530.0,116520.0,0.00012169]
[1754711462520,0.869799,116530.0,116520.0,0.00012169]
[1754711462740,1.50653476,116530.0,116520.0,0.00012169]
[1754711463360,1.50453476,116530.0,116520.0,0.00012169]
[1754711463559,1.50153476,116530.0,116520.0,0.00012169]
[1754711463968,1.50653476,116530.0,116520.0,0.00012169]
[1754711464458,0.873799,116530.0,116520.0,0.00012169]
[1754711464736,1.51053476,116530.0,116520.0,0.00012169]
[1754711465391,0.873799,116530.0,116520.0,0.00012169]
[1754711465613,1.51053476,116530.0,116520.0,0.00012169]
[1754711468334,1.51858401,116530.0,116520.0,0.00012169]
[1754711471156,1.51053476,116530.0,116520.0,0.00012169]
[1754711473201,1.51858562,116530.0,116520.0,0.00012169]
[1754711473404,1.51053476,116530.0,116520.0,0.00012169]
[1754711474797,1.51858623,116530.0,116520.0,0.00012169]
[1754711475123,1.51053476,116530.0,116520.0,0.00012169]
[1754711475322,1.51858692,116530.0,116520.0,0.00012169]
[1754711478210,1.51858692,116530.0,116480.0,0.32695304]
[1754711478211,0.17167381,116500.0,116480.0,0.32695304]
[1754711478417,0.13096,116490.0,116480.0,0.54900046]
[1754711479421,0.13096,116490.0,116480.0,0.55745132]
[1754711479632,0.13096,116490.0,116480.0,0.56245132]
[1754711479840,0.13096,116490.0,116480.0,0.56545132]
[1754711480436,0.13096,116490.0,116480.0,0.56245132]
[1754711480824,0.13096,116490.0,116480.0,0.56545132]
[1754711481464,0.13096,116490.0,116480.0,0.51554828]
[1754711481682,0.13096,116490.0,116480.0,0.51254828]
[1754711481885,0.13096,116490.0,116480.0,0.50754828]
[1754711482093,0.13096,116490.0,116480.0,0.51054828]
[1754711483871,0.13096,116490.0,116480.0,0.50209742]
[1754711484077,0.13096,116490.0,116480.0,0.50409742]
[1754711487687,0.13096,116490.0,116480.0,0.57258781]
[1754711490864,0.13096,116490.0,116480.0,0.89095569]
[1754711491899,0.15675,116490.0,116480.0,0.89095569]
[1754711501193,0.13096,116490.0,116480.0,0.89095569]
[1754711502010,0.13096,116490.0,116480.0,0.57258781]
[1754711503447,0.13096,116490.0,116480.0,0.89095569]
[1754711503643,0.13406,116490.0,116480.0,0.18572954]
[1754711503849,0.13406,116490.0,116480.0,0.8224653]
[1754711504055,0.13406,116490.0,116480.0,0.50409742]
[1754711504691,0.159851,116490.0,116480.0,0.50409742]
[1754711505299,0.028891,116490.0,116480.0,0.50409742]
[1754711505502,0.159811,116490.0,116480.0,0.5833874]
[1754711509668,0.13402,116490.0,116480.0,0.90175528]
[1754711511123,0.35380454,116500.0,116490.0,0.17168855]
[1754711511124,0.09836862,116500.0,116490.0,0.17168855]
[1754711511266,0.06947762,116500.0,116490.0,0.49005643]
[1754711511477,0.028888,116510.0,116500.0,0.17167381]
[1754711511687,0.028888,116510.0,116500.0,0.80840957]
[1754711511688,0.13088,116510.0,116500.0,0.80840957]
[1754711512884,0.13188,116510.0,116500.0,1.12677745]
[1754711513079,0.13188,116510.0,116500.0,0.80840957]
[1754711514132,0.13288,116510.0,116500.0,0.80840957]
[1754711514330,0.13288,116510.0,116500.0,0.88769955]
[1754711514736,0.13188,116510.0,116500.0,0.88769955]
[1754711514959,0.13188,116510.0,116500.0,1.01857955]
[1754711515317,0.13088,116510.0,116500.0,1.01857955]
[1754711516231,0.13088,116510.0,116500.0,1.02157955]
[1754711516440,0.13088,116510.0,116500.0,1.01857955]
[1754711516652,0.13088,116510.0,116500.0,1.02157955]
[1754711516853,0.13088,116510.0,116500.0,0.25396379]
[1754711517130,0.13088,116510.0,116500.0,0.89069955]
[1754711517711,0.13088,116510.0,116500.0,0.89169955]
[1754711520358,0.13088,116510.0,116500.0,1.04836355]
[1754711520558,0.13088,116510.0,116500.0,1.04736355]
[1754711522026,0.13088,116510.0,116500.0,1.04936355]
[1754711524547,0.13088,116510.0,116500.0,0.91848355]
[1754711530716,0.13088,116510.0,116500.0,1.04932355]
[1754711530948,0.13088,116510.0,116500.0,0.41258779]
[1754711531158,0.13088,116510.0,116500.0,1.04932355]
[1754711532699,0.20354762,116520.0,116510.0,0.17165908]
[1754711533011,0.20561762,116520.0,116510.0,0.49002696]
[1754711533848,0.20561762,116520.0,116510.0,0.49302696]
[1754711534056,0.20561762,116520.0,116510.0,0.52154235]
[1754711534872,0.20561762,116520.0,116510.0,0.17465908]
[1754711535146,0.20561762,116520.0,116510.0,0.49302696]
[1754711536253,0.20561762,116520.0,116510.0,0.17465908]
[1754711536466,0.20561762,116520.0,116510.0,0.49302696]
[1754711536670,0.20561762,116520.0,116510.0,0.17465908]
[1754711537157,0.20561762,116520.0,116510.0,0.49302696]
[1754711537351,0.13614,116520.0,116510.0,0.49302696]
[1754711537806,0.13614,116520.0,116510.0,0.17465908]
[1754711538021,0.13614,116520.0,116510.0,0.49302696]
[1754711538884,0.13604,116520.0,116510.0,0.17465908]
[1754711539080,0.13604,116520.0,116510.0,0.49302696]
[1754711539283,0.13604,116520.0,116510.0,0.57982121]
[1754711539684,0.13604,116520.0,116510.0,0.26145333]
[1754711539908,0.13604,116520.0,116510.0,0.49302696]
[1754711541921,0.13604,116520.0,116510.0,0.17465908]
[1754711542065,0.13604,116520.0,116510.0,0.49302696]
[1754711542675,0.13604,116520.0,116510.0,0.17465908]
[1754711543113,0.13604,116520.0,116510.0,0.49302696]
[1754711544378,0.13604,116520.0,116510.0,0.57982121]
[1754711547185,0.13604,116520.0,116510.0,0.49302696]
[1754711547540,0.5238855,116520.0,116510.0,0.17465908]
[1754711548074,0.20551762,116520.0,116510.0,0.17465908]
[1754711549193,0.5238855,116520.0,116510.0,0.17465908]
[1754711550400,0.69552985,116520.0,116510.0,0.17465908]
[1754711554635,0.37716197,116520.0,116510.0,0.17465908]
[1754711554829,0.69552985,116520.0,116510.0,0.17465908]
[1754711555661,1.20492485,116520.0,116510.0,0.003]
[1754711556664,1.20492485,116520.0,116510.0,0.001]
[1754711556869,1.20992485,116520.0,116510.0,0.001]
[1754711557446,0.17167381,116500.0,116490.0,0.49864085]
[1754711557649,0.30495381,116500.0,116490.0,0.49864085]
[1754711557896,0.30818381,116500.0,116490.0,0.49864085]
[1754711558828,0.30818381,116500.0,116490.0,0.49964085]
[1754711559196,0.30818381,116500.0,116490.0,0.18327297]
[1754711560071,0.30818381,116500.0,116490.0,0.50164085]
[1754711564315,0.30818381,116500.0,116490.0,0.5884351]
[1754711564519,0.30818381,116500.0,116490.0,0.18327297]
[1754711564728,0.30818381,116500.0,116490.0,0.3299523]
[1754711565645,0.30818381,116500.0,116490.0,0.32136788]
[1754711566053,0.30818381,116500.0,116490.0,0.003]
[1754711566203,0.30818381,116500.0,116490.0,0.32136788]
[1754711566664,0.30818381,116500.0,116490.0,0.003]
[1754711566797,0.30818381,116500.0,116490.0,0.32136788]
[1754711570614,0.30818381,116500.0,116490.0,0.40816213]
[1754711578617,0.30818381,116500.0,116490.0,0.08979425]
[1754711578825,0.30818381,116500.0,116490.0,0.003]
[1754711579029,0.30818381,116500.0,116490.0,0.32136788]
[1754711580148,0.30818381,116500.0,116490.0,0.003]
[1754711580498,0.30818381,116500.0,116490.0,0.32136788]
[1754711581573,0.30818381,116500.0,116490.0,0.003]
[1754711581779,0.78289142,116500.0,116490.0,0.003]
[1754711581952,0.46452354,116500.0,116490.0,0.003]
[1754711582151,0.46452354,116500.0,116490.0,0.32136788]
[1754711582360,0.46452354,116500.0,116490.0,0.40816213]
[1754711582710,0.46452354,116500.0,116490.0,0.40516213]
[1754711582906,0.46552354,116500.0,116490.0,0.40516213]
[1754711583465,0.46652354,116500.0,116490.0,0.40516213]
[1754711584349,0.46652354,116500.0,116490.0,0.31836788]
[1754711586993,0.13288,116500.0,116490.0,0.49024643]
[1754711587404,0.002,116500.0,116490.0,0.17187855]
[1754711587590,0.13288,116500.0,116490.0,0.49024643]
[1754711587990,0.13288,116500.0,116490.0,0.80861431]
[1754711587991,0.002,116500.0,116490.0,0.80861431]
[1754711588199,0.002,116500.0,116490.0,0.98239067]
[1754711588403,0.002,116500.0,116490.0,1.32239067]
[1754711588767,0.20035762,116520.0,116510.0,0.17165908]
[1754711588968,0.20035762,116520.0,116510.0,0.62109696]
[1754711589452,0.20341762,116520.0,116510.0,0.62109696]
[1754711589624,0.20341762,116520.0,116510.0,0.64210808]
[1754711590402,0.20441762,116520.0,116510.0,0.64210808]
[1754711590606,0.20644762,116520.0,116510.0,0.64210808]
[1754711591397,0.20644762,116520.0,116510.0,0.51122808]
[1754711592021,0.20744762,116520.0,116510.0,0.51122808]
[1754711593412,0.20744762,116520.0,116510.0,0.1928602]
[1754711594490,0.20744762,116520.0,116510.0,0.1926702]
[1754711596359,0.07656762,116520.0,116510.0,0.1926702]
[1754711596563,0.20744762,116520.0,116510.0,0.1926702]
[1754711599613,0.20744762,116520.0,116510.0,0.51103808]
[1754711604370,0.13797,116520.0,116510.0,0.51103808]
[1754711606647,0.13797,116520.0,116510.0,0.1926702]
[1754711606858,0.13797,116520.0,116510.0,0.51103808]
[1754711607065,0.13797,116520.0,116510.0,0.1926702]
[1754711607273,0.13797,116520.0,116510.0,0.51103808]
[1754711610915,0.13797,116520.0,116510.0,0.51122808]
[1754711621291,0.00709,116520.0,116510.0,0.51122808]
[1754711621506,0.13284,116520.0,116510.0,0.51122808]
[1754711622238,0.13599,116520.0,116510.0,0.51122808]
[1754711629612,0.13794,116520.0,116510.0,0.51122808]
[1754711630176,0.13794,116520.0,116510.0,0.1928602]
[1754711630352,0.13794,116520.0,116510.0,0.51122808]
[1754711641059,0.13794,116520.0,116510.0,0.1928602]
[1754711641365,0.13794,116520.0,116510.0,0.51103808]
[1754711643764,0.17165908,116510.0,116500.0,0.1079959]
[1754711643977,0.58199907,116510.0,116500.0,0.1079959]
[1754711644180,0.17167381,116500.0,116490.0,0.32136788]
[1754711644388,0.30762381,116500.0,116490.0,0.003]
[1754711644600,0.30762381,116500.0,116480.0,0.49909742]
[1754711644974,0.00298,116490.0,116480.0,0.58589167]
[1754711645189,0.00511,116490.0,116480.0,0.58589167]
[1754711647717,0.00511,116490.0,116480.0,0.58889167]
[1754711647933,0.00511,116490.0,116480.0,0.59408167]
[1754711653838,0.00511,116490.0,116480.0,0.27571379]
[1754711654043,0.00511,116490.0,116480.0,0.59408167]
[1754711655463,0.00511,116490.0,116480.0,0.27571379]
[1754711655657,0.00511,116490.0,116480.0,0.59408167]
[1754711658751,0.00511,116490.0,116480.0,0.27571379]
[1754711658955,0.00511,116490.0,116480.0,0.59408167]
[1754711661349,0.00511,116490.0,116480.0,0.72492167]
[1754711662141,0.00298,116490.0,116480.0,0.72492167]
[1754711662480,0.00298,116490.0,116480.0,1.04328955]
[1754711664755,0.00298,116490.0,116480.0,0.72492167]
[1754711676559,0.00298,116490.0,116480.0,0.40655379]
[1754711676767,0.00298,116490.0,116480.0,0.72492167]
[1754711681111,0.00298,116490.0,116480.0,0.40655379]
[1754711681330,0.00298,116490.0,116480.0,0.72492167]
[1754711681634,0.00298,116490.0,116480.0,0.40655379]
[1754711681827,0.00298,116490.0,116480.0,0.72492167]
[1754711682245,0.00505,116490.0,116480.0,0.72492167]
[1754711682496,0.00505,116490.0,116480.0,0.3109773]
[1754711682497,0.49510643,116490.0,116480.0,0.3109773]
[1754711682985,0.17673855,116490.0,116480.0,0.3109773]
[1754711683490,0.00505,116490.0,116480.0,0.62934518]
[1754711683691,0.07241762,116500.0,116490.0,0.17168855]
[1754711683897,0.07448762,116500.0,116490.0,0.70765068]
[1754711684109,0.02579,116510.0,116500.0,0.17167381]
[1754711684322,0.72344418,116520.0,116500.0,0.62103169]
[1754711684526,1.12573417,116520.0,116500.0,0.30266381]
[1754711684728,0.00294,116510.0,116500.0,0.30266381]
[1754711684975,0.00501,116510.0,116500.0,0.32367493]
[1754711686097,0.83315229,116520.0,116510.0,0.17165908]
[1754711686098,0.67975256,116520.0,116510.0,0.17165908]
[1754711686318,1.00019044,116520.0,116510.0,0.17165908]
[1754711687818,1.00119044,116520.0,116510.0,0.17165908]
[1754711688338,1.00219044,116520.0,116510.0,0.17165908]
[1754711689589,1.00219044,116520.0,116500.0,0.64185281]
[1754711689794,0.00294,116510.0,116500.0,0.64185281]
[1754711689991,0.00294,116510.0,116500.0,0.64204281]
[1754711690206,0.00294,116510.0,116500.0,0.32367493]
[1754711690399,0.00501,116510.0,116500.0,0.32367493]
[1754711691156,0.32337788,116510.0,116500.0,0.32367493]
[1754711691363,0.32337788,116510.0,116500.0,0.30247381]
[1754711691688,0.32337788,116510.0,116500.0,0.30447381]
[1754711691907,0.00501,116510.0,116500.0,0.30447381]
[1754711692102,0.00501,116510.0,116500.0,0.17367381]
[1754711692312,0.00501,116510.0,116500.0,0.25400528]
[1754711692588,0.32337788,116510.0,116500.0,0.25400528]
[1754711692797,0.32337788,116510.0,116500.0,0.25700528]
[1754711692997,0.00501,116510.0,116500.0,0.25700528]
[1754711693368,0.32337788,116510.0,116500.0,0.25700528]
[1754711693740,0.00501,116510.0,116500.0,0.25700528]
[1754711695263,0.66882571,116510.0,116500.0,0.005]
[1754711696361,0.35045783,116510.0,116500.0,0.005]
[1754711696572,0.66882571,116510.0,116500.0,0.005]
[1754711696794,0.69461571,116510.0,116500.0,0.005]
[1754711699228,0.30677021,116510.0,116500.0,0.005]
[1754711699399,0.62513809,116510.0,116500.0,0.005]
[1754711699947,0.30677021,116510.0,116500.0,0.005]
[1754711700391,0.62513809,116510.0,116500.0,0.005]
[1754711702059,0.30677021,116510.0,116500.0,0.005]
[1754711702264,0.62513809,116510.0,116500.0,0.005]
[1754711704390,0.30677021,116510.0,116500.0,0.005]
[1754711704596,0.62513809,116510.0,116500.0,0.005]
[1754711707827,0.30677021,116510.0,116500.0,0.005]
[1754711708184,0.62513809,116510.0,116500.0,0.005]
[1754711714497,0.30677021,116510.0,116500.0,0.005]
[1754711715128,0.62513809,116510.0,116500.0,0.005]
[1754711719242,0.62513809,116510.0,116500.0,0.17667381]
[1754711719448,0.02579,116510.0,116500.0,0.21169987]
[1754711719646,0.02579,116510.0,116500.0,0.49523169]
[1754711720047,0.02579,116510.0,116500.0,0.17686381]
[1754711720298,0.97235444,116520.0,116510.0,0.17165908]
[1754711720474,1.08695255,116520.0,116510.0,0.17165908]
[1754711720899,0.76898467,116520.0,116510.0,0.17165908]
[1754711721099,1.08735255,116520.0,116510.0,0.17165908]
[1754711721529,1.08835255,116520.0,116510.0,0.17165908]
[1754711721643,1.08935255,116520.0,116510.0,0.17165908]
[1754711722157,1.08935255,116520.0,116500.0,0.17167381]
[1754711722763,0.003,116510.0,116500.0,0.17167381]
[1754711722966,0.003,116510.0,116500.0,0.17186381]
[1754711724188,0.32136788,116510.0,116500.0,0.17186381]
[1754711724829,0.32136788,116510.0,116500.0,0.17386381]
[1754711725862,0.32136788,116510.0,116500.0,0.17486381]
[1754711727239,0.83518696,116510.0,116500.0,0.003]
[1754711727646,0.86097496,116510.0,116500.0,0.003]
[1754711731871,0.83518696,116510.0,116500.0,0.003]
[1754711735219,0.51681908,116510.0,116500.0,0.003]
[1754711735454,0.83518696,116510.0,116500.0,0.003]
[1754711735667,0.51681908,116510.0,116500.0,0.003]
[1754711735878,0.83518696,116510.0,116500.0,0.003]
[1754711736503,0.96618696,116510.0,116500.0,0.003]
[1754711737536,0.64781908,116510.0,116500.0,0.003]
[1754711737741,0.96618696,116510.0,116500.0,0.003]
[1754711738590,0.64781908,116510.0,116500.0,0.003]
[1754711738798,0.96618696,116510.0,116500.0,0.17467381]
[1754711740208,0.64781908,116510.0,116500.0,0.17467381]
[1754711740409,0.96618696,116510.0,116500.0,0.17467381]
[1754711740607,0.64781908,116510.0,116500.0,0.17467381]
[1754711740983,0.96618696,116510.0,116500.0,0.17467381]
[1754711741707,0.64781908,116510.0,116500.0,0.17467381]
[1754711741962,0.96618696,116510.0,116500.0,0.17467381]
[1754711744862,0.96618696,116510.0,116500.0,0.003]
[1754711747438,1.05304907,116510.0,116500.0,0.003]
[1754711749739,0.73468119,116510.0,116500.0,0.003]
[1754711749920,1.05304907,116510.0,116500.0,0.003]
[1754711752311,1.07049809,116510.0,116500.0,0.003]
[1754711752719,1.09628909,116510.0,116500.0,0.003]
[1754711757287,0.77792121,116510.0,116500.0,0.003]
[1754711757491,1.09628909,116510.0,116500.0,0.003]
[1754711759568,0.77792121,116510.0,116500.0,0.003]
[1754711759772,1.09628909,116510.0,116500.0,0.003]
[1754711760416,1.07049809,116510.0,116500.0,0.003]
[1754711761266,1.07049809,116510.0,116500.0,0.17467381]
[1754711761267,0.75213021,116510.0,116500.0,0.17467381]
[1754711761438,0.72952119,116510.0,116500.0,0.17486381]
[1754711761672,0.55786211,116510.0,116500.0,0.17486381]
[1754711761828,0.87622999,116510.0,116500.0,0.17486381]
[1754711762433,0.87943999,116510.0,116500.0,0.17486381]
[1754711762599,0.471,116510.0,116500.0,0.17486381]
[1754711763841,0.47421,116510.0,116500.0,0.17486381]
[1754711764014,0.79458788,116510.0,116500.0,0.17486381]
[1754711764659,0.96624696,116510.0,116500.0,0.17486381]
[1754711764889,0.64787908,116510.0,116500.0,0.17486381]
[1754711765097,0.96624696,116510.0,116500.0,0.17486381]
[1754711766199,0.64787908,116510.0,116500.0,0.17486381]
[1754711766402,0.96624696,116510.0,116500.0,0.17486381]
[1754711768050,0.96624696,116510.0,116500.0,0.17467381]
[1754711768675,0.64787908,116510.0,116500.0,0.17467381]
[1754711768875,0.96624696,116510.0,116500.0,0.17467381]
[1754711770483,0.96624696,116510.0,116500.0,0.003]
[1754711773191,0.73474119,116510.0,116500.0,0.003]
[1754711773410,1.05310907,116510.0,116500.0,0.003]
[1754711785078,1.47572022,116510.0,116500.0,0.003]
[1754711785476,1.50151222,116510.0,116500.0,0.003]
[1754711789091,1.50151222,116510.0,116500.0,0.001]
[1754711789401,0.17168855,116490.0,116480.0,0.18076016]
[1754711789596,0.62399643,116490.0,116480.0,0.18095016]
[1754711790542,0.62399643,116490.0,116480.0,0.18295016]
[1754711791098,0.62609643,116490.0,116480.0,0.18295016]
[1754711791305,0.30772855,116490.0,116480.0,0.18295016]
[1754711791514,0.45440788,116490.0,116480.0,0.18295016]
[1754711792289,0.62609643,116490.0,116480.0,0.18295016]
[1754711793205,0.45440788,116490.0,116480.0,0.18295016]
[1754711794726,0.13604,116490.0,116480.0,0.18395016]
[1754711794925,0.45440788,116490.0,116480.0,0.18395016]
[1754711795323,0.13604,116490.0,116480.0,0.18395016]
[1754711795478,0.45440788,116490.0,116480.0,0.18395016]
[1754711796130,0.13604,116490.0,116480.0,0.18395016]
[1754711796539,0.45440788,116490.0,116480.0,0.18395016]
[1754711796778,0.025792,116500.0,116480.0,0.25312121]
[1754711796987,0.025792,116500.0,116490.0,0.81069041]
[1754711797212,0.025792,116500.0,116490.0,0.83452031]
[1754711797427,0.32138788,116530.0,116520.0,0.17164435]
[1754711797630,0.13418,116530.0,116520.0,0.49020223]
[1754711797842,0.47418,116530.0,116520.0,0.49020223]
[1754711798052,0.47628,116530.0,116520.0,0.17183435]
[1754711798272,0.45464788,116530.0,116520.0,0.17183435]
[1754711798484,0.79464788,116530.0,116520.0,0.21046867]
[1754711798690,0.47628,116530.0,116520.0,0.21051609]
[1754711798912,0.47928,116530.0,116520.0,0.21051609]
[1754711799953,0.48428,116530.0,116520.0,0.21051609]
[1754711800503,0.48428,116530.0,116520.0,0.17188177]
[1754711800706,0.48428,116530.0,116520.0,0.17169177]
[1754711800911,0.65590962,116530.0,116520.0,4.742e-05]
[1754711801121,0.65590962,116530.0,116520.0,0.17169177]
[1754711805980,1.06125725,116530.0,116520.0,0.17169177]
[1754711806164,1.07870627,116530.0,116520.0,4.742e-05]
[1754711806578,1.10449027,116530.0,116520.0,4.742e-05]
[1754711809600,0.78600475,116530.0,116520.0,0.17169177]
[1754711810333,1.10449027,116530.0,116520.0,0.17169177]
[1754711810540,0.78600475,116530.0,116520.0,0.17169177]
[1754711814523,1.10449027,116530.0,116520.0,0.17169177]
[1754711814958,0.78600475,116530.0,116520.0,0.17169177]
[1754711815564,0.78600475,116530.0,116520.0,4.742e-05]
[1754711816007,1.10449027,116530.0,116520.0,4.742e-05]
[1754711818810,1.19128452,116530.0,116520.0,4.742e-05]
[1754711820204,0.872799,116530.0,116520.0,4.742e-05]
[1754711820416,1.10449027,116530.0,116520.0,4.742e-05]
[1754711820814,1.10456186,116530.0,116520.0,4.742e-05]
[1754711824891,0.78600475,116530.0,116520.0,4.742e-05]
[1754711825119,1.10456186,116530.0,116520.0,4.742e-05]
[1754711825295,1.19135611,116530.0,116520.0,4.742e-05]
[1754711825526,0.78600475,116530.0,116520.0,4.742e-05]
[1754711825733,1.10456186,116530.0,116520.0,4.742e-05]
[1754711830856,0.78600475,116530.0,116520.0,4.742e-05]
[1754711831060,1.10456186,116530.0,116520.0,4.742e-05]
[1754711836136,0.78600475,116530.0,116520.0,4.742e-05]
[1754711836330,1.10456186,116530.0,116520.0,4.742e-05]
[1754711836589,1.19135611,116530.0,116520.0,4.742e-05]
[1754711840537,0.872799,116530.0,116520.0,4.742e-05]
[1754711840678,1.19135611,116530.0,116520.0,4.742e-05]
[1754711847310,1.10456186,116530.0,116520.0,4.742e-05]
[1754711852493,1.07877786,116530.0,116520.0,4.742e-05]
[1754711860263,0.76022075,116530.0,116520.0,4.742e-05]
[1754711860728,1.07877786,116530.0,116520.0,4.742e-05]
[1754711863660,0.76022075,116530.0,116520.0,4.742e-05]
[1754711863856,1.07877786,116530.0,116520.0,4.742e-05]
[1754711864108,0.76022075,116530.0,116520.0,4.742e-05]
[1754711864281,1.07877786,116530.0,116520.0,4.742e-05]
[1754711864692,1.16557211,116530.0,116520.0,4.742e-05]
[1754711865912,0.847015,116530.0,116520.0,4.742e-05]
[1754711866112,1.16557211,116530.0,116520.0,4.742e-05]
[1754711867640,0.76022075,116530.0,116520.0,4.742e-05]
[1754711867850,1.07877786,116530.0,116520.0,4.742e-05]
[1754711881995,0.76022075,116530.0,116520.0,4.742e-05]
[1754711882247,1.07877786,116530.0,116520.0,4.742e-05]
[1754711883733,0.76022075,116530.0,116520.0,4.742e-05]
[1754711884058,1.16557211,116530.0,116520.0,4.742e-05]
[1754711885330,1.07877786,116530.0,116520.0,4.742e-05]
[1754711895792,0.76022075,116530.0,116520.0,4.742e-05]
[1754711895995,1.07877786,116530.0,116520.0,4.742e-05]
[1754711912228,1.10456386,116530.0,116520.0,4.742e-05]
[1754711921420,0.78600675,116530.0,116520.0,4.742e-05]
[1754711921622,1.10456386,116530.0,116520.0,4.742e-05]
[1754711921851,1.19135811,116530.0,116520.0,4.742e-05]
[1754711925857,1.10456386,116530.0,116520.0,4.742e-05]
[1754711927537,0.78600675,116530.0,116520.0,4.742e-05]
[1754711927744,1.10456386,116530.0,116520.0,4.742e-05]
[1754711929447,0.78600675,116530.0,116520.0,4.742e-05]
[1754711929686,1.10456386,116530.0,116520.0,4.742e-05]
[1754711929863,1.19135811,116530.0,116520.0,4.742e-05]
[1754711931124,0.872801,116530.0,116520.0,4.742e-05]
[1754711931354,1.19135811,116530.0,116520.0,4.742e-05]
[1754711934527,0.872801,116530.0,116520.0,4.742e-05]
[1754711934745,1.19135811,116530.0,116520.0,4.742e-05]
[1754711939944,0.872801,116530.0,116520.0,4.742e-05]
[1754711940222,1.19135811,116530.0,116520.0,4.742e-05]
[1754711942114,0.872801,116530.0,116520.0,4.742e-05]
[1754711942457,1.19135811,116530.0,116520.0,4.742e-05]
[1754711942777,0.872801,116530.0,116520.0,4.742e-05]
[1754711942916,1.19135811,116530.0,116520.0,4.742e-05]
[1754711950038,0.872801,116530.0,116520.0,4.742e-05]
[1754711950301,1.19135811,116530.0,116520.0,4.742e-05]
[1754711965608,0.872801,116530.0,116520.0,4.742e-05]
[1754711965827,1.19135811,116530.0,116520.0,4.742e-05]
[1754711977908,0.872801,116530.0,116520.0,4.742e-05]
[1754711978066,1.10456386,116530.0,116520.0,4.742e-05]
[1754712006066,0.78600675,116530.0,116520.0,4.742e-05]
[1754712006273,1.10456386,116530.0,116520.0,4.742e-05]
[1754712018131,0.78600675,116530.0,116520.0,4.742e-05]
[1754712018351,1.10456386,116530.0,116520.0,4.742e-05]
[1754712018566,1.19135811,116530.0,116520.0,4.742e-05]
[1754712022889,1.89794995,116530.0,116520.0,1e-08]
[1754712023100,1.90599368,116530.0,116520.0,1e-08]
[1754712023353,1.58743657,116530.0,116520.0,1e-08]
[1754712023987,1.58443657,116530.0,116520.0,1e-08]
[1754712024439,1.58843657,116530.0,116520.0,1e-08]
[1754712024832,1.58343657,116530.0,116520.0,1e-08]
[1754712025271,1.58843657,116530.0,116520.0,1e-08]
[1754712025912,1.58443657,116530.0,116520.0,1e-08]
[1754712026115,1.51495895,116530.0,116520.0,1e-08]
[1754712026330,1.51895895,116530.0,116520.0,1e-08]
[1754712027402,1.51091522,116530.0,116520.0,1e-08]
[1754712027613,1.51894695,116530.0,116520.0,1e-08]
[1754712031519,1.51894424,116530.0,116520.0,1e-08]
[1754712033892,1.20038713,116530.0,116520.0,1e-08]
[1754712034133,0.864381,116530.0,116520.0,0.00019001]
[1754712034353,1.16978909,116530.0,116520.0,0.00019001]
[1754712034567,1.18723811,116530.0,116520.0,0.00019001]
[1754712035209,1.18323811,116530.0,116520.0,0.00019001]
[1754712035446,1.18625811,116530.0,116520.0,0.00019001]
[1754712035660,1.18525811,116530.0,116520.0,0.00019001]
[1754712035870,1.18925811,116530.0,116520.0,0.00019001]
[1754712036499,1.19129811,116530.0,116520.0,0.00019001]
[1754712038504,1.89788995,116530.0,116520.0,1e-08]
[1754712038731,1.90591918,116530.0,116520.0,1e-08]
[1754712039861,1.58736207,116530.0,116520.0,1e-08]
[1754712040310,1.90591918,116530.0,116520.0,1e-08]
[1754712042966,1.93091918,116530.0,116520.0,1e-08]
[1754712043585,1.61236207,116530.0,116520.0,1e-08]
[1754712044226,1.54288445,116530.0,116520.0,1e-08]
[1754712047559,1.86144156,116530.0,116520.0,1e-08]
[1754712047776,1.54288445,116530.0,116520.0,1e-08]
[1754712057070,1.74908445,116530.0,116520.0,1e-08]
[1754712060667,2.06764156,116530.0,116520.0,1e-08]
[1754712064831,1.74908445,116530.0,116520.0,1e-08]
[1754712069579,2.06764156,116530.0,116520.0,1e-08]
[1754712070459,2.0676551,116530.0,116520.0,1e-08]
[1754712075540,2.08618453,116530.0,116520.0,1e-08]
[1754712078508,2.08618354,116530.0,116520.0,1e-08]
[1754712079375,2.067654,116530.0,116520.0,1e-08]
[1754712080601,1.74909689,116530.0,116520.0,1e-08]
[1754712082195,1.74909702,116530.0,116520.0,1e-08]
[1754712082603,1.74509702,116530.0,116520.0,1e-08]
[1754712082821,1.74109702,116530.0,116520.0,1e-08]
[1754712083018,1.74609702,116530.0,116520.0,1e-08]
[1754712083586,1.75009702,116530.0,116520.0,1e-08]
[1754712090983,1.75009815,116530.0,116520.0,1e-08]
[1754712091818,1.57142913,116530.0,116520.0,0.00019001]
[1754712092026,1.70222913,116530.0,116520.0,0.00019001]
[1754712092231,1.71967815,116530.0,116520.0,0.00019001]
[1754712092852,1.72289815,116530.0,116520.0,0.00019001]
[1754712100001,1.72289306,116530.0,116520.0,0.00019001]
[1754712100381,1.72484306,116530.0,116520.0,0.00019001]
[1754712101983,1.72484306,116530.0,116520.0,1e-08]
[1754712102842,1.72484254,116530.0,116520.0,1e-08]
[1754712108724,1.72484201,116530.0,116520.0,1e-08]
[1754712112507,1.51864201,116530.0,116520.0,1e-08]
[1754712112915,0.75072779,116530.0,116520.0,0.00019001]
[1754712113119,1.51856201,116530.0,116520.0,0.00019001]
[1754712115495,0.97732065,116530.0,116520.0,0.00019001]
[1754712115635,0.63327773,116530.0,116520.0,0.00019001]
[1754712115842,1.08255484,116530.0,116520.0,0.00019001]
[1754712116044,0.76000386,116530.0,116520.0,0.00019001]
[1754712116239,1.10000386,116530.0,116520.0,0.00019001]
[1754712116441,1.18679811,116530.0,116520.0,0.00019001]
[1754712117692,1.18279811,116530.0,116520.0,0.00019001]
[1754712118119,1.18479811,116530.0,116520.0,0.00019001]
[1754712118356,1.17979811,116530.0,116520.0,0.00019001]
[1754712118712,1.18179811,116530.0,116520.0,0.00019001]
[1754712121128,1.18500811,116530.0,116520.0,0.00019001]
[1754712121341,1.1880088,116530.0,116520.0,0.00019001]